[Event "Early-Titled-Tuesday-Blitz-March-12-2024"]
[Site "Chess.com"]
[Date "2024.03.12"]
[Round "4"]
[White "Real_taiatai"]
[Black "Witty_Alien"]
[Result "1-0"]
[WhiteElo "2542"]
[BlackElo "2322"]
[TimeControl "180+1"]
[EndTime "8:39:18 PDT"]
[Termination "Real_taiatai won by checkmate"]

1. c3 {[%clk 0:03:00.1]} 1... e5 {[%clk 0:02:45.5]} 2. d4 {[%clk 0:02:59.8]}
2... exd4 {[%clk 0:02:41.2]} 3. cxd4 {[%clk 0:03:00.7]} 3... d5 {[%clk
0:02:41.8]} 4. Nc3 {[%clk 0:03:01]} 4... Nf6 {[%clk 0:02:42.2]} 5. Bg5 {[%clk
0:03:01.1]} 5... c6 {[%clk 0:02:40.8]} 6. e3 {[%clk 0:03:01.3]} 6... Bd6 {[%clk
0:02:41.1]} 7. Bd3 {[%clk 0:03:01.7]} 7... h6 {[%clk 0:02:38.3]} 8. Bh4 {[%clk
0:03:01.3]} 8... Nbd7 {[%clk 0:02:36]} 9. Qc2 {[%clk 0:03:01.1]} 9... Nf8 {[%clk
0:02:31.9]} 10. Nf3 {[%clk 0:02:57.9]} 10... Ne6 {[%clk 0:02:26.4]} 11. h3
{[%clk 0:02:50]} 11... g5 {[%clk 0:02:22.7]} 12. Bg3 {[%clk 0:02:49.9]} 12...
Bxg3 {[%clk 0:02:23.2]} 13. fxg3 {[%clk 0:02:50.8]} 13... Qd6 {[%clk 0:02:22.4]}
14. O-O-O {[%clk 0:02:42.9]} 14... Qxg3 {[%clk 0:02:20.5]} 15. Rhf1 {[%clk
0:02:37.1]} 15... g4 {[%clk 0:02:09.6]} 16. hxg4 {[%clk 0:02:19.2]} 16... Nxg4
{[%clk 0:02:08.7]} 17. Qe2 {[%clk 0:02:11.2]} 17... Bd7 {[%clk 0:01:55.1]} 18.
Bf5 {[%clk 0:01:41.8]} 18... O-O-O {[%clk 0:01:47]} 19. Kb1 {[%clk 0:01:40.5]}
19... Rde8 {[%clk 0:01:44.2]} 20. Qd2 {[%clk 0:01:20.5]} 20... Kb8 {[%clk
0:01:34.6]} 21. Bxg4 {[%clk 0:01:09.2]} 21... Qxg4 {[%clk 0:01:33]} 22. Ne5
{[%clk 0:01:09.8]} 22... Qg3 {[%clk 0:00:48.2]} 23. Nxd7+ {[%clk 0:01:09]} 23...
Ka8 {[%clk 0:00:49]} 24. Na4 {[%clk 0:00:52.4]} 24... Re7 {[%clk 0:00:28.5]} 25.
Qa5 {[%clk 0:00:48.8]} 25... a6 {[%clk 0:00:07.5]} 26. Qb4 {[%clk 0:00:20.5]}
26... Qg6+ {[%clk 0:00:01.9]} 27. Ka1 {[%clk 0:00:20.1]} 27... Ka7 {[%clk
0:00:01.4]} 28. Qxe7 {[%clk 0:00:19.3]} 28... Nxd4 {[%clk 0:00:01.5]} 29. Qc5+
{[%clk 0:00:16.4]} 29... b6 {[%clk 0:00:01.8]} 30. Qxb6+ {[%clk 0:00:15.9]}
30... Ka8 {[%clk 0:00:01.9]} 31. Qxa6# {[%clk 0:00:16.4]} 1-0

[Event "Early-Titled-Tuesday-Blitz-March-12-2024"]
[Site "Chess.com"]
[Date "2024.03.12"]
[Round "4"]
[White "AttilaTurzo"]
[Black "Goryachkina"]
[Result "1/2-1/2"]
[WhiteElo "2472"]
[BlackElo "2673"]
[TimeControl "180+1"]
[EndTime "8:39:21 PDT"]
[Termination "Game drawn by repetition"]

1. d4 {[%clk 0:03:00.9]} 1... Nf6 {[%clk 0:02:59.4]} 2. Bf4 {[%clk 0:03:00.3]}
2... g6 {[%clk 0:02:57.5]} 3. Nf3 {[%clk 0:03:00.4]} 3... Bg7 {[%clk 0:02:57.7]}
4. c3 {[%clk 0:03:01]} 4... O-O {[%clk 0:02:57.6]} 5. Nbd2 {[%clk 0:03:01.3]}
5... d6 {[%clk 0:02:57.2]} 6. e4 {[%clk 0:03:00.9]} 6... Nbd7 {[%clk 0:02:57.1]}
7. h3 {[%clk 0:03:00.4]} 7... Qe8 {[%clk 0:02:56.6]} 8. Be2 {[%clk 0:02:59]}
8... e5 {[%clk 0:02:56.4]} 9. dxe5 {[%clk 0:02:59.6]} 9... dxe5 {[%clk
0:02:55.6]} 10. Be3 {[%clk 0:03:00]} 10... Nh5 {[%clk 0:02:53.5]} 11. O-O {[%clk
0:02:59.1]} 11... Nf4 {[%clk 0:02:48.4]} 12. Bc4 {[%clk 0:02:55.2]} 12... h6
{[%clk 0:02:41.6]} 13. a4 {[%clk 0:02:54.6]} 13... g5 {[%clk 0:02:39.5]} 14. Re1
{[%clk 0:02:50.5]} 14... a5 {[%clk 0:02:37.2]} 15. Bf1 {[%clk 0:02:48.4]} 15...
Qe7 {[%clk 0:02:33.6]} 16. g3 {[%clk 0:02:46.6]} 16... Ng6 {[%clk 0:02:29.2]}
17. Bg2 {[%clk 0:02:24.1]} 17... Nf6 {[%clk 0:02:29.2]} 18. Qc2 {[%clk
0:02:16.9]} 18... g4 {[%clk 0:02:29]} 19. hxg4 {[%clk 0:02:15.2]} 19... Nxg4
{[%clk 0:02:29.9]} 20. Nf1 {[%clk 0:02:12]} 20... Be6 {[%clk 0:02:23.2]} 21.
N3h2 {[%clk 0:02:09.2]} 21... h5 {[%clk 0:02:16.9]} 22. Nxg4 {[%clk 0:02:07.8]}
22... hxg4 {[%clk 0:02:09.3]} 23. Rad1 {[%clk 0:02:03.1]} 23... Rfd8 {[%clk
0:02:05.4]} 24. Rxd8+ {[%clk 0:01:52.6]} 24... Rxd8 {[%clk 0:02:05]} 25. Rd1
{[%clk 0:01:52.6]} 25... b6 {[%clk 0:02:03.8]} 26. Rxd8+ {[%clk 0:01:37.6]}
26... Qxd8 {[%clk 0:02:04.7]} 27. Nd2 {[%clk 0:01:37]} 27... Bf6 {[%clk
0:01:59.6]} 28. Bf1 {[%clk 0:01:23.3]} 28... Bg5 {[%clk 0:01:54.3]} 29. Bxg5
{[%clk 0:01:22.6]} 29... Qxg5 {[%clk 0:01:54.6]} 30. Bc4 {[%clk 0:01:23.3]}
30... Nf8 {[%clk 0:01:54.6]} 31. Bxe6 {[%clk 0:01:17.2]} 31... Nxe6 {[%clk
0:01:54.7]} 32. Nc4 {[%clk 0:01:17.6]} 32... Qh5 {[%clk 0:01:44.8]} 33. Qd1
{[%clk 0:00:55.7]} 33... Ng5 {[%clk 0:01:42.2]} 34. Ne3 {[%clk 0:00:55.5]} 34...
Nf3+ {[%clk 0:01:32]} 35. Kf1 {[%clk 0:00:54.7]} 35... Kh7 {[%clk 0:00:57.1]}
36. Ke2 {[%clk 0:00:40.5]} 36... Qg6 {[%clk 0:00:54.3]} 37. Nf5 {[%clk
0:00:31.5]} 37... Qe6 {[%clk 0:00:51.8]} 38. Qh1+ {[%clk 0:00:27.8]} 38... Kg8
{[%clk 0:00:51.5]} 39. Qh6 {[%clk 0:00:19.8]} 39... Qc4+ {[%clk 0:00:34.6]} 40.
Ke3 {[%clk 0:00:20.1]} 40... Qc5+ {[%clk 0:00:32.9]} 41. Ke2 {[%clk 0:00:20.4]}
41... Qc4+ {[%clk 0:00:31.7]} 42. Ke3 {[%clk 0:00:20.9]} 42... Qc5+ {[%clk
0:00:32.2]} 43. Ke2 {[%clk 0:00:21.4]} 43... Qc4+ {[%clk 0:00:32.3]} 1/2-1/2

[Event "Early-Titled-Tuesday-Blitz-March-12-2024"]
[Site "Chess.com"]
[Date "2024.03.12"]
[Round "4"]
[White "Smoking_Crow"]
[Black "LuisFSiles"]
[Result "1-0"]
[WhiteElo "2569"]
[BlackElo "2305"]
[TimeControl "180+1"]
[EndTime "8:39:24 PDT"]
[Termination "Smoking_Crow won on time"]

1. a3 {[%clk 0:02:57.7]} 1... g6 {[%clk 0:02:58.8]} 2. h4 {[%clk 0:02:55.8]}
2... h5 {[%clk 0:02:56.4]} 3. d4 {[%clk 0:02:55.8]} 3... Bg7 {[%clk 0:02:56.2]}
4. Nf3 {[%clk 0:02:56]} 4... Nf6 {[%clk 0:02:55.8]} 5. c4 {[%clk 0:02:54.3]}
5... d6 {[%clk 0:02:52]} 6. Nc3 {[%clk 0:02:37.7]} 6... O-O {[%clk 0:02:48.2]}
7. Bf4 {[%clk 0:02:35.1]} 7... c5 {[%clk 0:02:45.9]} 8. d5 {[%clk 0:02:32.2]}
8... Bf5 {[%clk 0:02:41.7]} 9. Qd2 {[%clk 0:02:30]} 9... a6 {[%clk 0:02:33.8]}
10. Ng5 {[%clk 0:02:29.5]} 10... b5 {[%clk 0:02:00.5]} 11. e4 {[%clk 0:02:25.4]}
11... Bd7 {[%clk 0:01:54.4]} 12. cxb5 {[%clk 0:02:18.4]} 12... axb5 {[%clk
0:01:54.6]} 13. Bxb5 {[%clk 0:02:16.4]} 13... Bxb5 {[%clk 0:01:49.1]} 14. Nxb5
{[%clk 0:02:14.8]} 14... Qb6 {[%clk 0:01:49.3]} 15. Nc3 {[%clk 0:02:13.1]} 15...
Nfd7 {[%clk 0:01:44.8]} 16. O-O {[%clk 0:02:07.3]} 16... Na6 {[%clk 0:01:40.8]}
17. Nf3 {[%clk 0:02:01.4]} 17... Rfb8 {[%clk 0:01:35.5]} 18. Rab1 {[%clk
0:01:58.7]} 18... c4 {[%clk 0:01:32.3]} 19. Bg5 {[%clk 0:01:55.5]} 19... Bf6
{[%clk 0:01:19.9]} 20. Bxf6 {[%clk 0:01:55.4]} 20... exf6 {[%clk 0:01:17.7]} 21.
Nd4 {[%clk 0:01:51.5]} 21... Nac5 {[%clk 0:01:12.2]} 22. Nc6 {[%clk 0:01:49.8]}
22... Re8 {[%clk 0:01:09]} 23. Qd4 {[%clk 0:01:42.9]} 23... Ne5 {[%clk
0:01:07.8]} 24. Nxe5 {[%clk 0:01:32.7]} 24... fxe5 {[%clk 0:01:04.4]} 25. Qxc4
{[%clk 0:01:31.6]} 25... Nb3 {[%clk 0:01:00]} 26. Rfd1 {[%clk 0:01:23.2]} 26...
Rec8 {[%clk 0:00:59.7]} 27. Qb5 {[%clk 0:01:19.1]} 27... Rab8 {[%clk 0:00:36.9]}
28. Qxb6 {[%clk 0:01:18]} 28... Rxb6 {[%clk 0:00:37.8]} 29. f3 {[%clk
0:01:11.2]} 29... f5 {[%clk 0:00:33.9]} 30. Kf2 {[%clk 0:01:03.4]} 30... Kf7
{[%clk 0:00:32.1]} 31. Ke3 {[%clk 0:01:02.1]} 31... f4+ {[%clk 0:00:21.6]} 32.
Kd3 {[%clk 0:01:00.4]} 32... g5 {[%clk 0:00:21.9]} 33. hxg5 {[%clk 0:00:59.2]}
33... Rg8 {[%clk 0:00:21.4]} 34. Rh1 {[%clk 0:00:52.7]} 34... Rxg5 {[%clk
0:00:21.1]} 35. Rh2 {[%clk 0:00:53.2]} 35... Rb8 {[%clk 0:00:17.4]} 36. a4
{[%clk 0:00:49.8]} 36... Nd4 {[%clk 0:00:17.3]} 37. b4 {[%clk 0:00:46.7]} 37...
Rbg8 {[%clk 0:00:17]} 38. b5 {[%clk 0:00:46]} 38... Rxg2 {[%clk 0:00:16.4]} 39.
Rxg2 {[%clk 0:00:46]} 39... Rxg2 {[%clk 0:00:16.3]} 40. b6 {[%clk 0:00:46.6]}
40... Nxf3 {[%clk 0:00:03]} 41. b7 {[%clk 0:00:44.6]} 1-0

[Event "Early-Titled-Tuesday-Blitz-March-12-2024"]
[Site "Chess.com"]
[Date "2024.03.12"]
[Round "4"]
[White "EpicPlayz282"]
[Black "Herman-NY"]
[Result "1-0"]
[WhiteElo "2357"]
[BlackElo "2530"]
[TimeControl "180+1"]
[EndTime "8:39:26 PDT"]
[Termination "EpicPlayz282 won on time"]

1. e4 {[%clk 0:02:57.3]} 1... e5 {[%clk 0:03:00.2]} 2. Nf3 {[%clk 0:02:57.1]}
2... Nc6 {[%clk 0:03:00.7]} 3. Nc3 {[%clk 0:02:57.7]} 3... d6 {[%clk 0:02:59.5]}
4. g3 {[%clk 0:02:52.5]} 4... g6 {[%clk 0:02:50.5]} 5. d4 {[%clk 0:02:48.1]}
5... Bg4 {[%clk 0:02:45.7]} 6. dxe5 {[%clk 0:02:15.4]} 6... dxe5 {[%clk
0:02:15.8]} 7. Nd5 {[%clk 0:01:55.6]} 7... Nd4 {[%clk 0:01:51.4]} 8. Bg2 {[%clk
0:01:54.9]} 8... c6 {[%clk 0:01:20]} 9. Ne3 {[%clk 0:01:45.7]} 9... Nxf3+ {[%clk
0:00:56.7]} 10. Bxf3 {[%clk 0:01:45.2]} 10... Qxd1+ {[%clk 0:00:56.8]} 11. Bxd1
{[%clk 0:01:45.2]} 11... Bxd1 {[%clk 0:00:54.6]} 12. Nxd1 {[%clk 0:01:40.5]}
12... Nf6 {[%clk 0:00:51.2]} 13. f3 {[%clk 0:01:40.6]} 13... Nd7 {[%clk
0:00:51.5]} 14. Be3 {[%clk 0:01:39.5]} 14... Bc5 {[%clk 0:00:41.3]} 15. Bxc5
{[%clk 0:01:36.4]} 15... Nxc5 {[%clk 0:00:42.2]} 16. Ne3 {[%clk 0:01:36.6]}
16... Ke7 {[%clk 0:00:38.5]} 17. Nc4 {[%clk 0:01:32.8]} 17... f6 {[%clk
0:00:32.7]} 18. a4 {[%clk 0:01:27.4]} 18... Rhd8 {[%clk 0:00:28.6]} 19. Ke2
{[%clk 0:01:24.3]} 19... Rd4 {[%clk 0:00:27.8]} 20. b3 {[%clk 0:01:21.7]} 20...
Rad8 {[%clk 0:00:23.6]} 21. a5 {[%clk 0:01:10.9]} 21... Ke6 {[%clk 0:00:16.1]}
22. Rhd1 {[%clk 0:01:08.9]} 22... f5 {[%clk 0:00:15.9]} 23. exf5+ {[%clk
0:01:07.2]} 23... gxf5 {[%clk 0:00:15.7]} 24. Rxd4 {[%clk 0:01:07.9]} 24... Rxd4
{[%clk 0:00:14.9]} 25. Re1 {[%clk 0:01:05.6]} 25... Nd7 {[%clk 0:00:08.8]} 26.
Kf2 {[%clk 0:00:59.2]} 26... Kf6 {[%clk 0:00:09.2]} 27. c3 {[%clk 0:00:56.5]}
27... Rd3 {[%clk 0:00:09.1]} 28. Rc1 {[%clk 0:00:55.1]} 28... h5 {[%clk
0:00:08.2]} 29. b4 {[%clk 0:00:52.8]} 29... h4 {[%clk 0:00:06.2]} 30. Ke2 {[%clk
0:00:52.2]} 30... Rd5 {[%clk 0:00:06.1]} 31. Ne3 {[%clk 0:00:52.7]} 31... Rd6
{[%clk 0:00:05.9]} 32. gxh4 {[%clk 0:00:53.3]} 32... Nf8 {[%clk 0:00:04.2]} 33.
h5 {[%clk 0:00:52.6]} 33... Ne6 {[%clk 0:00:04.7]} 34. h6 {[%clk 0:00:38.1]}
34... Nf4+ {[%clk 0:00:04.8]} 35. Kf1 {[%clk 0:00:38.9]} 35... Rd7 {[%clk
0:00:04.3]} 36. Rd1 {[%clk 0:00:36.3]} 36... Rh7 {[%clk 0:00:04]} 37. Rd6+
{[%clk 0:00:35]} 37... Kg5 {[%clk 0:00:04.5]} 38. h4+ {[%clk 0:00:34.6]} 38...
Kxh4 {[%clk 0:00:03.4]} 39. Nxf5+ {[%clk 0:00:35.2]} 39... Kh3 {[%clk 0:00:04]}
40. Kf2 {[%clk 0:00:31.3]} 40... Rf7 {[%clk 0:00:03.7]} 41. Ng7 {[%clk
0:00:27.2]} 1-0

[Event "Early-Titled-Tuesday-Blitz-March-12-2024"]
[Site "Chess.com"]
[Date "2024.03.12"]
[Round "4"]
[White "CarlosjPineror"]
[Black "Sam_ChessMood"]
[Result "0-1"]
[WhiteElo "2627"]
[BlackElo "2964"]
[TimeControl "180+1"]
[EndTime "8:39:28 PDT"]
[Termination "Sam_ChessMood won by resignation"]

1. e4 {[%clk 0:03:00.9]} 1... d6 {[%clk 0:03:00.1]} 2. d4 {[%clk 0:03:00.3]}
2... Nf6 {[%clk 0:03:00.6]} 3. Nc3 {[%clk 0:03:00.8]} 3... g6 {[%clk 0:03:01.1]}
4. f3 {[%clk 0:03:00.3]} 4... Bg7 {[%clk 0:03:00.6]} 5. Be3 {[%clk 0:03:00.9]}
5... a6 {[%clk 0:02:57]} 6. Qd2 {[%clk 0:03:00.9]} 6... h5 {[%clk 0:02:56.8]} 7.
h4 {[%clk 0:03:01]} 7... b5 {[%clk 0:02:56.7]} 8. Nh3 {[%clk 0:03:00.5]} 8...
Bb7 {[%clk 0:02:54]} 9. Ng5 {[%clk 0:03:00]} 9... Nbd7 {[%clk 0:02:53.6]} 10. a4
{[%clk 0:02:55.1]} 10... c6 {[%clk 0:02:48.5]} 11. Be2 {[%clk 0:02:43.4]} 11...
O-O {[%clk 0:02:48.3]} 12. O-O {[%clk 0:02:43.2]} 12... b4 {[%clk 0:02:46.8]}
13. Nd1 {[%clk 0:02:42.9]} 13... a5 {[%clk 0:02:43.8]} 14. Nf2 {[%clk
0:02:42.5]} 14... c5 {[%clk 0:02:43.9]} 15. c3 {[%clk 0:02:35.6]} 15... e6
{[%clk 0:02:21.2]} 16. Rfd1 {[%clk 0:02:33.2]} 16... Qe7 {[%clk 0:02:19.2]} 17.
Bb5 {[%clk 0:02:31.6]} 17... Rfd8 {[%clk 0:02:18.3]} 18. Qe2 {[%clk 0:02:29.5]}
18... Rac8 {[%clk 0:01:56.9]} 19. Rac1 {[%clk 0:02:28]} 19... Ne8 {[%clk
0:01:54.1]} 20. g4 {[%clk 0:02:02.7]} 20... Nef6 {[%clk 0:01:53]} 21. Rc2 {[%clk
0:01:40.7]} 21... cxd4 {[%clk 0:01:47.8]} 22. cxd4 {[%clk 0:01:40.4]} 22... Rxc2
{[%clk 0:01:46.8]} 23. Qxc2 {[%clk 0:01:41.1]} 23... Rc8 {[%clk 0:01:47.2]} 24.
Qd3 {[%clk 0:01:24]} 24... hxg4 {[%clk 0:01:40.7]} 25. fxg4 {[%clk 0:01:22]}
25... e5 {[%clk 0:01:38.9]} 26. d5 {[%clk 0:01:20.8]} 26... Nc5 {[%clk
0:01:38.9]} 27. Bxc5 {[%clk 0:01:17.8]} 27... Rxc5 {[%clk 0:01:37.7]} 28. Bc4
{[%clk 0:01:12.7]} 28... Bc8 {[%clk 0:01:34.9]} 29. b3 {[%clk 0:00:59]} 29...
Nxg4 {[%clk 0:01:28.9]} 30. Nxg4 {[%clk 0:00:56.3]} 30... Bxg4 {[%clk
0:01:29.8]} 31. Rf1 {[%clk 0:00:56.4]} 31... Bf6 {[%clk 0:01:29.5]} 32. Qe3
{[%clk 0:00:53.9]} 32... Kg7 {[%clk 0:01:23.1]} 33. Kg2 {[%clk 0:00:33.2]} 33...
Rc8 {[%clk 0:01:19.8]} 34. Kg3 {[%clk 0:00:33.6]} 34... Bd7 {[%clk 0:01:14]} 35.
Nf3 {[%clk 0:00:23.7]} 35... Bxa4 {[%clk 0:01:09.3]} 36. Ra1 {[%clk 0:00:19.7]}
36... Bd7 {[%clk 0:01:05.8]} 37. Rxa5 {[%clk 0:00:17.3]} 37... Rh8 {[%clk
0:01:05.9]} 38. Ra7 {[%clk 0:00:15]} 38... Bxh4+ {[%clk 0:01:05.4]} 39. Kg2
{[%clk 0:00:15.5]} 39... Bh3+ {[%clk 0:00:59.4]} 40. Kg1 {[%clk 0:00:14.7]}
40... Qf6 {[%clk 0:00:57.7]} 41. Be2 {[%clk 0:00:11.2]} 41... Bg4 {[%clk
0:00:50.8]} 42. Rb7 {[%clk 0:00:08.4]} 42... Bg3 {[%clk 0:00:44.4]} 43. Nd2
{[%clk 0:00:06.6]} 43... Bf2+ {[%clk 0:00:42.3]} 44. Qxf2 {[%clk 0:00:06.5]}
44... Rh1+ {[%clk 0:00:42.2]} 45. Kg2 {[%clk 0:00:07]} 45... Rh2+ {[%clk
0:00:41.8]} 0-1

[Event "Early-Titled-Tuesday-Blitz-March-12-2024"]
[Site "Chess.com"]
[Date "2024.03.12"]
[Round "4"]
[White "Sanyura"]
[Black "cthulhuuu"]
[Result "1-0"]
[WhiteElo "2612"]
[BlackElo "2393"]
[TimeControl "180+1"]
[EndTime "8:39:28 PDT"]
[Termination "Sanyura won by resignation"]

1. Nf3 {[%clk 0:02:59.6]} 1... Nf6 {[%clk 0:02:59.8]} 2. c4 {[%clk 0:02:57.8]}
2... g6 {[%clk 0:03:00.2]} 3. Nc3 {[%clk 0:02:57]} 3... Bg7 {[%clk 0:03:00.9]}
4. d4 {[%clk 0:02:56.6]} 4... O-O {[%clk 0:03:01.6]} 5. e4 {[%clk 0:02:52.9]}
5... d6 {[%clk 0:03:02.2]} 6. Be2 {[%clk 0:02:52.9]} 6... e5 {[%clk 0:03:02.1]}
7. O-O {[%clk 0:02:51.4]} 7... exd4 {[%clk 0:02:57.4]} 8. Nxd4 {[%clk
0:02:51.2]} 8... Re8 {[%clk 0:02:57.6]} 9. f3 {[%clk 0:02:50.3]} 9... a5 {[%clk
0:02:57.8]} 10. Be3 {[%clk 0:02:50.2]} 10... Na6 {[%clk 0:02:57.5]} 11. Qd2
{[%clk 0:02:50.5]} 11... c6 {[%clk 0:02:55]} 12. Rad1 {[%clk 0:02:48.1]} 12...
Nc5 {[%clk 0:02:19.2]} 13. Nc2 {[%clk 0:02:20.6]} 13... Qb6 {[%clk 0:02:08.5]}
14. Na4 {[%clk 0:02:02.2]} 14... Qa6 {[%clk 0:01:04.5]} 15. Nxc5 {[%clk
0:01:49.4]} 15... dxc5 {[%clk 0:01:05.4]} 16. Bxc5 {[%clk 0:01:50.2]} 16... Be6
{[%clk 0:01:06]} 17. b3 {[%clk 0:01:34.6]} 17... a4 {[%clk 0:01:06.1]} 18. Nd4
{[%clk 0:01:28.5]} 18... axb3 {[%clk 0:00:50]} 19. axb3 {[%clk 0:01:28.6]} 19...
Bd7 {[%clk 0:00:27.8]} 20. Bd6 {[%clk 0:00:50.5]} 20... b6 {[%clk 0:00:15.8]}
21. e5 {[%clk 0:00:49.4]} 21... Nh5 {[%clk 0:00:10.6]} 22. c5 {[%clk 0:00:49.7]}
22... bxc5 {[%clk 0:00:10]} 23. Bxa6 {[%clk 0:00:49.1]} 23... cxd4 {[%clk
0:00:09]} 24. Bb7 {[%clk 0:00:48.8]} 24... Ra7 {[%clk 0:00:08.6]} 25. Qb4 {[%clk
0:00:48.9]} 25... Nf4 {[%clk 0:00:06.4]} 26. Kh1 {[%clk 0:00:46.5]} 26... Nd5
{[%clk 0:00:06]} 27. Qxd4 {[%clk 0:00:32.1]} 27... Rxb7 {[%clk 0:00:06.7]} 28.
b4 {[%clk 0:00:32.7]} 28... Bf5 {[%clk 0:00:04.3]} 29. f4 {[%clk 0:00:30.4]}
29... Rd7 {[%clk 0:00:04.5]} 30. Qc5 {[%clk 0:00:29.7]} 30... Rc8 {[%clk
0:00:03.7]} 31. Rxd5 {[%clk 0:00:28.5]} 31... Be4 {[%clk 0:00:03.2]} 32. Rdd1
{[%clk 0:00:27.8]} 32... Rb7 {[%clk 0:00:03.6]} 33. Rc1 {[%clk 0:00:26.8]} 33...
Rb5 {[%clk 0:00:03.9]} 34. Qxb5 {[%clk 0:00:27.2]} 34... cxb5 {[%clk 0:00:04.1]}
35. Rxc8+ {[%clk 0:00:28.1]} 35... Bf8 {[%clk 0:00:04.7]} 36. Bxf8 {[%clk
0:00:28.2]} 36... Bb7 {[%clk 0:00:04]} 37. Rb8 {[%clk 0:00:27.9]} 1-0

[Event "Early-Titled-Tuesday-Blitz-March-12-2024"]
[Site "Chess.com"]
[Date "2024.03.12"]
[Round "4"]
[White "chess_blitz00"]
[Black "amelia91"]
[Result "0-1"]
[WhiteElo "2466"]
[BlackElo "2089"]
[TimeControl "180+1"]
[EndTime "8:39:33 PDT"]
[Termination "amelia91 won on time"]

1. a3 {[%clk 0:03:00]} 1... d5 {[%clk 0:02:58.4]} 2. d4 {[%clk 0:03:00.2]} 2...
Nf6 {[%clk 0:02:57.2]} 3. Nc3 {[%clk 0:02:59.2]} 3... e6 {[%clk 0:02:57.5]} 4.
Bf4 {[%clk 0:02:59.5]} 4... Bd6 {[%clk 0:02:56.9]} 5. e3 {[%clk 0:02:59.5]} 5...
O-O {[%clk 0:02:56.3]} 6. Nge2 {[%clk 0:02:59.5]} 6... c5 {[%clk 0:02:56.3]} 7.
f3 {[%clk 0:02:57.1]} 7... Qc7 {[%clk 0:02:56.2]} 8. Qd2 {[%clk 0:02:55.2]} 8...
Nbd7 {[%clk 0:02:56.3]} 9. g4 {[%clk 0:02:55]} 9... e5 {[%clk 0:02:56]} 10. dxe5
{[%clk 0:02:54]} 10... Nxe5 {[%clk 0:02:56.9]} 11. Bg2 {[%clk 0:02:52.2]} 11...
a6 {[%clk 0:02:45.4]} 12. O-O-O {[%clk 0:02:29.3]} 12... Nc4 {[%clk 0:02:28.5]}
13. Qd3 {[%clk 0:02:24.5]} 13... b5 {[%clk 0:02:05.5]} 14. Nxd5 {[%clk
0:02:14.1]} 14... Nxd5 {[%clk 0:02:04.9]} 15. Qxd5 {[%clk 0:02:04.7]} 15... Bxf4
{[%clk 0:02:03.2]} 16. Nxf4 {[%clk 0:01:57.1]} 16... Nxe3 {[%clk 0:01:57.6]} 17.
Qxa8 {[%clk 0:01:52]} 17... Nxd1 {[%clk 0:01:57.4]} 18. Rxd1 {[%clk 0:00:58.5]}
18... Qxf4+ {[%clk 0:01:48.4]} 19. Kb1 {[%clk 0:00:58.7]} 19... Qxh2 {[%clk
0:01:45.4]} 20. Bf1 {[%clk 0:00:33.3]} 20... Qc7 {[%clk 0:01:38]} 21. Qe4 {[%clk
0:00:31.1]} 21... Bb7 {[%clk 0:01:37.3]} 22. Qf5 {[%clk 0:00:29]} 22... c4
{[%clk 0:01:26.9]} 23. Rd7 {[%clk 0:00:22.6]} 23... Qc6 {[%clk 0:01:27]} 24. Re7
{[%clk 0:00:03.8]} 24... Qxf3 {[%clk 0:01:18.6]} 25. a4 {[%clk 0:00:02.7]} 25...
Qd1+ {[%clk 0:01:04.7]} 26. Ka2 {[%clk 0:00:02.3]} 26... Bc8 {[%clk 0:00:46.6]}
27. Qf4 {[%clk 0:00:02.1]} 27... Be6 {[%clk 0:00:44.7]} 28. Be2 {[%clk
0:00:02.4]} 28... c3+ {[%clk 0:00:41.5]} 29. Rxe6 {[%clk 0:00:02.1]} 29... Qd5+
{[%clk 0:00:39.4]} 30. Bc4 {[%clk 0:00:01.6]} 30... bxc4 {[%clk 0:00:38.1]} 31.
Re5 {[%clk 0:00:02.2]} 31... Qa5 {[%clk 0:00:37.2]} 32. Qxc4 {[%clk 0:00:02.3]}
32... Qxe5 {[%clk 0:00:36.4]} 33. b4 {[%clk 0:00:02.3]} 33... Qe6 {[%clk
0:00:35.4]} 34. Qxe6 {[%clk 0:00:02]} 34... fxe6 {[%clk 0:00:36.3]} 35. Kb3
{[%clk 0:00:02.6]} 35... Rc8 {[%clk 0:00:34.8]} 36. b5 {[%clk 0:00:01.5]} 36...
axb5 {[%clk 0:00:34.9]} 37. axb5 {[%clk 0:00:02.4]} 37... Kf7 {[%clk 0:00:34.8]}
38. Kb4 {[%clk 0:00:02.7]} 38... Ke7 {[%clk 0:00:34.9]} 39. b6 {[%clk
0:00:03.3]} 39... Kd6 {[%clk 0:00:34.5]} 40. Kb5 {[%clk 0:00:04]} 40... g6
{[%clk 0:00:31.2]} 41. b7 {[%clk 0:00:02.5]} 41... Rf8 {[%clk 0:00:30]} 42. g5
{[%clk 0:00:02]} 42... e5 {[%clk 0:00:29.9]} 43. Kb6 {[%clk 0:00:01.6]} 43... e4
{[%clk 0:00:30.1]} 0-1